bitfinex/quotes_ETHUSD_20240730
["timestamp","ask_amount","ask_price","bid_price","bid_amount"]
[1722358383993,0.60212104,3319.8,3319.5,3.01245]
[1722358384412,0.07292517,3319.7,3319.4,3.01258]
[1722358384606,0.07292517,3319.7,3319.4,3.01254]
[1722358384808,3.08524517,3319.7,3319.2,3.01269]
[1722358385051,0.36873662,3319.6,3319.2,3.01269]
[1722358385259,3.08546517,3319.5,3319.1,0.3019]
[1722358385407,3.01261,3319.4,3319.1,0.3019]
[1722358385603,3.01261,3319.4,3319.0,3.1593726]
[1722358385604,0.07292517,3319.3,3319.0,3.1593726]
[1722358385857,3.08560517,3319.3,3319.0,0.1464826]
[1722358386155,0.07292517,3319.2,3319.0,0.1464826]
[1722358386960,3.01286,3319.1,3319.0,0.1464826]
[1722358387450,3.08578517,3319.1,3319.0,0.1464826]
[1722358388837,0.07292517,3319.1,3319.0,0.1464826]
[1722358389373,0.36873662,3319.6,3319.1,3.01281]
[1722358389543,0.07292517,3319.5,3319.1,3.01286]
[1722358389937,3.73211535,3319.5,3319.0,0.1464826]
[1722358390444,3.0126,3319.4,3319.0,0.1464826]
[1722358390649,2.55032517,3319.3,3319.0,0.1464826]
[1722358390967,6.02572,3319.1,3319.0,0.1464826]
[1722358391126,6.95624969,3319.1,3319.0,0.1464826]
[1722358392900,9.89618452,3319.1,3319.0,0.1464826]
[1722358394885,6.88332452,3319.1,3319.0,0.1464826]
[1722358395508,9.89618452,3319.1,3319.0,0.1464826]
[1722358395818,9.30382452,3319.1,3319.0,0.1464826]
[1722358399343,15.31668452,3319.1,3319.0,0.1464826]
[1722358400543,17.98368452,3319.1,3319.0,0.1464826]
[1722358400767,21.70568452,3319.1,3319.0,0.1464826]
[1722358402557,21.70568452,3319.1,3319.0,0.1464826]
[1722358405243,12.30382452,3319.1,3319.0,0.1464826]
[1722358405457,9.88332452,3319.1,3319.0,0.1464826]
[1722358405604,6.01286,3319.1,3319.0,0.1464826]
[1722358405810,3.0125,3319.5,3319.0,0.23379349]
[1722358406129,0.07292517,3319.4,3319.0,0.23379349]
[1722358406500,3.01282,3319.2,3319.0,0.23379349]
[1722358406741,0.07292517,3319.1,3319.0,0.23379349]
[1722358406941,3.08578517,3319.1,3319.0,0.23379349]
[1722358407581,0.07292517,3319.1,3319.0,0.23379349]
[1722358407820,3.01282,3319.2,3319.0,0.23379349]
[1722358407989,0.07292517,3319.1,3319.0,0.23379349]
[1722358408658,0.07292517,3319.3,3319.0,0.23379349]
[1722358409003,3.01236,3319.7,3319.1,3.01281]
[1722358409159,3.08534517,3319.6,3319.2,0.0871184]
[1722358409359,3.08534517,3319.6,3319.0,3.1594326]
[1722358409576,3.08534517,3319.6,3319.1,3.01285]
[1722358409775,3.08534517,3319.6,3319.1,3.10002774]
[1722358409981,3.01252,3319.5,3319.1,0.08717774]
[1722358410213,0.07292517,3319.4,3319.1,0.08717774]
[1722358410414,3.08560517,3319.4,3319.1,0.08717774]
[1722358410565,0.07292517,3319.4,3319.1,0.08717774]
[1722358411282,0.07292517,3319.4,3319.1,3.10003774]
[1722358411478,3.01229,3319.8,3319.2,3.0127]
[1722358411676,0.07292517,3319.7,3319.2,3.0127]
[1722358411913,0.07292517,3319.7,3319.1,0.71311977]
[1722358411914,3.08525517,3319.7,3319.3,0.08705906]
[1722358412400,3.08525517,3319.7,3319.0,3.1594226]
[1722358412602,3.01241,3319.6,3319.0,3.1594226]
[1722358412914,3.08542517,3319.5,3319.1,0.08717774]
[1722358413074,6.02544,3319.3,3319.1,0.08717774]
[1722358413279,0.07292517,3319.2,3319.1,0.08717774]
[1722358413810,3.08569517,3319.2,3319.1,0.08717774]
[1722358414016,3.01277,3319.2,3319.1,0.08717774]
[1722358414219,3.08569517,3319.2,3319.1,0.08717774]
[1722358414412,3.69553969,3319.2,3319.1,0.08717774]
[1722358414635,6.70830969,3319.2,3319.1,0.08717774]
[1722358414796,15.02655452,3319.2,3319.1,0.08717774]
[1722358414992,12.01378452,3319.2,3319.0,0.1464826]
[1722358415296,9.09864517,3319.1,3319.0,0.1464826]
[1722358415503,10.60861114,3319.1,3319.0,0.1464826]
[1722358415700,13.62147114,3319.1,3319.0,0.1464826]
[1722358419315,10.60861114,3319.1,3319.0,0.1464826]
[1722358420146,13.37147114,3319.1,3319.0,0.1464826]
[1722358421200,13.92147114,3319.1,3319.0,0.1464826]
[1722358421415,16.93433114,3319.1,3319.0,0.1464826]
[1722358421841,13.92147114,3319.1,3319.0,0.1464826]
[1722358422551,16.93433114,3319.1,3319.0,0.1464826]
[1722358424316,13.92147114,3319.1,3319.0,0.1464826]
[1722358424849,16.93433114,3319.1,3319.0,0.1464826]
[1722358425309,13.92147114,3319.1,3319.0,0.1464826]
[1722358426242,13.37147114,3319.1,3319.0,0.1464826]
[1722358427139,10.35861114,3319.1,3319.0,0.1464826]
[1722358428280,2.76286,3319.1,3319.0,0.1464826]
[1722358428461,2.76286,3319.1,3319.0,0.23377835]
[1722358428642,2.83578517,3319.1,3319.0,0.23377835]
[1722358428827,3.08578517,3319.1,3319.0,0.23377835]
[1722358429028,3.01286,3319.1,3319.0,0.23377835]
[1722358429767,3.08569517,3319.2,3319.0,0.23377835]
[1722358429956,3.01286,3319.1,3319.0,0.23377835]
[1722358430267,0.07292517,3319.1,3319.0,0.23377835]
[1722358430769,3.08578517,3319.1,3319.0,0.23377835]
[1722358431176,6.09864517,3319.1,3319.0,0.23377835]
[1722358431330,0.07292517,3319.1,3319.0,0.23377835]
[1722358431527,3.01263,3319.4,3319.0,0.23377835]
[1722358431769,3.01263,3319.4,3319.1,2.327]
[1722358431940,0.07292517,3319.3,3319.1,2.327]
[1722358432139,3.01233,3319.7,3319.2,0.08708245]
[1722358432358,3.01228,3319.8,3319.2,0.08708245]
[1722358432629,3.01238,3319.7,3319.2,3.09985245]
[1722358432939,3.01224,3319.8,3319.3,3.01267]
[1722358433166,3.01224,3319.8,3319.3,3.91235533]
[1722358433475,3.01224,3319.8,3319.4,0.08696378]
[1722358433681,3.01214,3319.9,3319.3,3.91230533]
[1722358433989,10.40206,3320.0,3319.5,2.371]
[1722358434280,7.39,3320.0,3319.6,3.09913351]
[1722358434589,10.057,3320.8,3319.6,0.08673351]
[1722358434794,3.01159,3320.5,3320.0,3.01204]
[1722358435076,0.07292517,3320.4,3320.1,0.08617584]
[1722358435245,0.07292517,3320.4,3319.9,3.01212]
[1722358435576,3.08461517,3320.4,3320.0,2.75844715]
[1722358435886,3.08474517,3320.3,3320.0,2.75844715]
[1722358436026,0.07292517,3320.2,3320.0,2.45723515]
[1722358436372,3.01195,3320.1,3320.0,2.45723515]
[1722358436704,3.08487517,3320.1,3320.0,0.08623515]
[1722358437174,3.08487517,3320.1,3319.6,2.3411]
[1722358437175,3.01232,3319.7,3319.6,2.3411]
[1722358437378,0.07292517,3320.1,3319.4,7.35]
[1722358437379,3.0122,3319.9,3319.4,7.35]
[1722358437526,3.08515517,3319.8,3319.4,7.35]
[1722358437726,0.07292517,3319.7,3319.4,7.35]
[1722358437949,0.07292517,3319.9,3319.5,3.01244]
[1722358438155,6.02387,3320.2,3319.5,3.01244]
[1722358438156,0.07292517,3320.1,3319.6,3.0124]
[1722358438462,3.08487517,3320.1,3319.6,3.0124]
[1722358438667,3.08487517,3320.1,3319.4,11.645451]
[1722358438874,3.08498517,3320.0,3319.4,11.645451]
[1722358439086,0.07292517,3320.0,3319.6,3.0124]
[1722358440009,3.08487517,3320.1,3319.6,3.01239]
[1722358440311,0.07292517,3320.2,3319.8,2.3362]
[1722358440456,3.01168,3320.4,3319.8,5.8918955]
[1722358440800,0.07292517,3320.5,3320.0,3.01204]
[1722358441099,3.01143,3320.7,3320.1,3.09807773]
[1722358441610,3.08449517,3320.6,3320.1,0.08617773]
[1722358441895,0.07292517,3320.6,3320.0,3.01204]
[1722358442204,3.08445517,3320.6,3320.2,0.08611843]
[1722358442361,3.08445517,3320.6,3320.1,0.08617773]
[1722358442556,3.01168,3320.4,3320.3,0.08605913]
[1722358442788,6.02354,3320.3,3320.2,0.08611843]
[1722358442983,3.01193,3320.2,3319.8,2.3362]
[1722358443307,0.07292517,3320.1,3319.8,2.3362]
[1722358443508,3.01187,3320.2,3319.8,2.3362]
[1722358443799,3.08487517,3320.1,3319.8,2.3362]
[1722358444302,0.07292517,3320.1,3319.8,2.3362]
[1722358444597,3.01212,3320.0,3319.8,2.3362]
[1722358444760,0.07292517,3319.9,3319.5,2.3726]
[1722358445368,3.01228,3319.8,3319.5,2.3726]
[1722358445571,3.01241,3319.6,3319.4,7.35]
[1722358445765,0.07292517,3319.7,3319.4,7.35]
[1722358445966,0.07292517,3319.8,3319.4,10.36258]
[1722358446265,3.01233,3319.7,3319.4,7.35]
[1722358446788,0.07292517,3319.8,3319.4,7.35]
[1722358447100,3.08517517,3319.8,3319.4,7.35]
[1722358447299,3.01233,3319.7,3319.4,7.35]
[1722358447473,3.08534517,3319.6,3319.4,7.35]
[1722358447860,3.0125,3319.5,3319.4,7.35]
[1722358448087,3.08533517,3319.6,3319.4,7.35]
[1722358448268,3.08533517,3319.6,3319.2,2.2983]
[1722358448459,0.07292517,3319.6,3319.2,2.2983]
[1722358448662,3.01268,3319.3,3319.2,2.2983]
[1722358448894,3.01268,3319.3,3319.0,0.1464826]
[1722358448895,3.08560517,3319.3,3319.0,0.1464826]
[1722358449202,3.08571517,3319.2,3319.0,0.1464826]
[1722358449503,0.07292517,3319.4,3319.0,0.1464826]
[1722358449903,0.07292517,3319.4,3319.1,3.01277]
[1722358450075,3.01236,3319.7,3319.1,3.01277]
[1722358450412,3.01254,3319.5,3319.0,4.15433086]
[1722358450607,3.08546517,3319.5,3319.0,3.1594326]
[1722358450804,0.07292517,3319.5,3319.1,3.01285]
[1722358451007,0.07292517,3319.5,3319.2,3.01269]
[1722358451207,3.01246,3319.6,3319.0,3.1594026]
[1722358451514,0.07292517,3319.5,3319.0,3.1594026]
[1722358451875,0.07292517,3319.5,3319.0,6.1722926]
[1722358452186,0.07292517,3319.5,3319.0,3.1593726]
[1722358452385,0.07292517,3319.5,3319.0,6.1722626]
[1722358452726,3.08544517,3319.5,3319.0,3.1593726]
[1722358452871,3.01259,3319.4,3319.0,0.1464826]
[1722358453571,3.08542517,3319.5,3319.0,3.1594226]
[1722358453766,3.08531517,3319.7,3319.0,4.75691886]
[1722358453966,3.01243,3319.6,3319.0,4.75691886]
[1722358454170,0.07292517,3319.5,3319.0,4.75691886]
[1722358454610,0.07292517,3319.5,3319.0,0.1464826]
[1722358454825,3.01268,3319.3,3319.0,0.1464826]
[1722358454987,3.01259,3319.4,3319.0,0.1464826]
[1722358455175,3.08551517,3319.4,3319.0,0.1464826]
[1722358455375,0.07292517,3319.6,3319.1,0.08667264]
[1722358456011,3.0125,3319.5,3319.1,0.08667264]
[1722358456312,0.07292517,3319.9,3319.2,0.32461052]
[1722358456515,3.01246,3319.6,3319.1,3.09947264]
[1722358456712,0.07292517,3319.5,3319.3,0.08667499]
[1722358457012,0.07292517,3319.5,3319.2,0.08673433]
[1722358457184,3.01234,3319.7,3319.4,0.08661566]
[1722358457394,3.08526517,3319.7,3319.3,0.08667499]
[1722358457620,6.02406,3320.1,3319.5,0.08655633]
[1722358457828,0.07292517,3320.0,3319.6,3.01238]
[1722358457978,3.08497517,3320.0,3319.6,0.086497]
[1722358458319,0.07292517,3320.0,3319.6,3.098857]
[1722358458683,3.08502517,3320.0,3319.6,0.086497]
[1722358458929,0.07292517,3319.9,3319.6,0.086497]
[1722358459396,3.01225,3319.8,3319.6,0.086497]
[1722358459727,0.07292517,3319.9,3319.4,2.2971]
[1722358459728,3.01216,3319.9,3319.7,0.08639608]
[1722358460023,3.08514517,3319.8,3319.7,0.08639608]
[1722358460224,3.08514517,3319.8,3319.4,2.2971]
[1722358460527,3.01233,3319.7,3319.4,2.2971]
[1722358460730,0.07292517,3319.8,3319.0,3.1593726]
[1722358460731,6.09782517,3319.6,3319.5,0.08649581]
[1722358461080,3.01264,3319.4,3319.0,0.1464826]
[1722358461320,3.01276,3319.3,3319.1,0.08673504]
[1722358461493,3.01277,3319.2,3319.1,0.08673504]
[1722358462321,6.02554,3319.2,3319.1,0.08673504]
[1722358462477,6.70831169,3319.2,3319.1,0.08673504]
[1722358462675,6.70831169,3319.2,3319.0,0.1464826]
[1722358462676,6.02572,3319.1,3319.0,0.1464826]
[1722358462931,6.09864517,3319.1,3319.0,0.23334506]
[1722358463170,0.07292517,3319.1,3319.0,0.23334506]
[1722358464172,3.08575517,3319.2,3319.0,0.23334506]
[1722358464462,3.24887252,3319.1,3319.0,0.23334506]
[1722358464630,0.23601252,3319.1,3319.0,0.1464826]
[1722358465166,3.24887252,3319.1,3319.0,0.1464826]
[1722358465318,3.32179769,3319.1,3319.0,0.1464826]
[1722358465662,6.33465769,3319.1,3319.0,0.1464826]
[1722358468046,6.09864517,3319.1,3319.0,0.1464826]
[1722358468845,11.52780517,3319.1,3319.0,0.1464826]
[1722358470575,15.09066517,3319.1,3319.0,0.1464826]
[1722358470779,18.09066517,3319.1,3319.0,0.1464826]
[1722358475203,21.26266517,3319.1,3319.0,0.1464826]
[1722358475434,23.97283169,3319.1,3319.0,0.1464826]
[1722358478953,3.01396,3317.9,3317.6,2.3007]
[1722358479134,0.07292517,3317.8,3317.6,2.3007]
[1722358479451,0.07292517,3317.8,3317.7,0.08812811]
[1722358480756,0.07292517,3317.9,3317.7,0.08812811]
[1722358481608,11.70912,3317.8,3317.7,0.08812811]
[1722358481827,8.69508,3317.8,3317.7,0.08812811]
[1722358482023,3.01413,3317.7,3317.1,3.01462]
[1722358482238,3.01439,3317.5,3317.0,2.2725]
[1722358482467,3.01449,3317.3,3317.2,0.08553097]
[1722358482638,3.01449,3317.3,3317.1,0.0856356]
[1722358482842,3.01449,3317.3,3317.2,0.08557619]
[1722358483248,0.07292517,3317.4,3317.0,2.2725]
[1722358483249,3.01459,3317.2,3317.0,2.2725]
[1722358483467,3.08760517,3317.1,3317.0,2.2725]
[1722358483655,3.01468,3317.1,3317.0,2.2725]
[1722358484035,3.01488,3316.9,3316.5,2.303]
[1722358484237,3.01509,3316.7,3316.5,2.303]
[1722358484741,0.07292517,3316.8,3316.5,2.303]
[1722358485183,0.07292517,3316.8,3316.6,0.08593271]
[1722358485352,0.07292517,3316.9,3316.6,0.08593271]
[1722358485562,0.07292517,3316.9,3316.3,3.01534]
[1722358485908,3.08764517,3317.1,3316.6,3.01513]
[1722358486247,3.08764517,3317.1,3316.7,0.08598824]
[1722358486592,3.01461,3317.2,3316.7,0.08598824]
[1722358486802,3.01461,3317.2,3316.7,3.10097824]
[1722358487095,3.0145,3317.3,3316.7,3.10097824]
[1722358487291,3.01469,3317.1,3316.7,0.08598824]
[1722358487796,3.08752517,3317.2,3316.7,3.10102824]
[1722358487980,0.07292517,3317.2,3316.8,3.01495]
[1722358488152,3.08744517,3317.3,3316.8,3.01495]
[1722358488345,3.08734517,3317.4,3316.9,0.0858694]
[1722358488943,0.07292517,3317.4,3316.9,0.0858694]
[1722358489245,3.01477,3317.0,3316.9,0.0858694]
[1722358489452,3.01477,3317.0,3316.9,0.08583924]
[1722358489776,3.01477,3317.0,3316.5,2.2918]
[1722358489777,3.01513,3316.6,3316.1,12.92963]
[1722358489984,3.08798517,3316.7,3316.2,3.01549]
[1722358490181,0.07292517,3316.7,3316.3,3.01531]
[1722358490385,0.07292517,3316.7,3316.2,3.01542]
[1722358490701,0.07292517,3316.7,3316.1,5.57963]
[1722358490850,3.01508,3316.7,3316.1,5.57963]
[1722358491057,0.07292517,3316.6,3316.2,3.01548]
[1722358491299,0.07292517,3316.7,3316.3,3.01535]
[1722358491463,0.07292517,3316.7,3316.3,3.01534]
[1722358491668,0.07292517,3317.0,3316.3,3.01534]
[1722358492057,3.01486,3316.9,3316.4,3.01526]
[1722358492397,3.01486,3316.9,3316.3,3.01534]
[1722358492398,0.07292517,3316.8,3316.3,3.01534]
[1722358492747,3.01505,3316.7,3316.1,8.59514]
[1722358492951,3.01505,3316.7,3316.1,5.2777]
[1722358493181,3.08805517,3316.6,3316.1,5.2777]
[1722358493380,3.01513,3316.6,3316.1,5.2777]
[1722358494056,3.01541,3316.3,3315.8,0.3019]
[1722358494302,3.01541,3316.3,3315.8,3.01586]
[1722358494949,3.08825517,3316.4,3315.8,3.01578]
[1722358495155,2.2887,3316.3,3315.9,3.01572]
[1722358495357,2.2887,3316.3,3315.7,0.1464826]
[1722358495358,3.08847517,3316.2,3315.7,3.1624126]
[1722358495572,3.08847517,3316.2,3315.7,0.1464826]
[1722358495873,3.01559,3316.1,3315.7,0.1464826]
[1722358496088,0.07292517,3316.0,3315.7,0.1464826]
[1722358496405,3.0154,3316.3,3315.8,3.01581]
[1722358496553,0.07292517,3316.2,3315.8,3.0158]
[1722358496756,0.07292517,3316.2,3315.7,5.5728226]
[1722358496961,0.07292517,3316.2,3315.7,2.5568826]
[1722358497184,0.07292517,3316.2,3315.7,5.5727926]
[1722358497185,3.08842517,3316.2,3315.7,5.5727926]
[1722358497391,3.08842517,3316.2,3315.7,8.5886826]
[1722358497587,3.08846517,3316.2,3315.7,2.5568826]
[1722358497814,3.01575,3316.0,3315.7,0.1464826]
[1722358497977,0.07292517,3315.9,3315.7,0.1464826]
[1722358499096,3.32440652,3316.2,3315.7,0.1464826]
[1722358499261,0.07292517,3316.1,3315.7,0.1464826]
[1722358499471,3.08842517,3316.2,3315.7,3.1624226]
[1722358499860,3.0156,3316.1,3315.7,0.1464826]
[1722358500112,0.07292517,3316.0,3315.7,0.1464826]
[1722358500264,3.08861517,3316.0,3315.8,0.08667024]
[1722358500461,3.01551,3316.2,3315.8,0.08667024]
[1722358500982,3.08851517,3316.1,3315.8,0.08667024]
[1722358501176,3.01577,3315.9,3315.8,0.08667024]
[1722358501376,6.10446517,3315.9,3315.8,0.08667024]
[1722358501777,6.10446517,3315.9,3315.7,0.1464826]
[1722358501778,3.01586,3315.8,3315.7,0.1464826]
[1722358502212,3.01555,3316.2,3315.7,5.5431123]
[1722358502507,3.0155,3316.2,3315.7,2.5272123]
[1722358502808,0.07292517,3316.1,3315.7,2.5272123]
[1722358503012,3.01569,3316.0,3315.7,2.5272123]
[1722358503320,0.07292517,3315.9,3315.7,0.2332123]
[1722358503542,3.01586,3315.8,3315.7,0.2332123]
[1722358504069,8.69872,3315.8,3315.7,0.2332123]
[1722358504399,9.04758,3315.8,3315.7,0.1464826]
[1722358504604,16.13272352,3315.8,3315.7,0.1464826]
[1722358505195,10.25714352,3315.8,3313.9,0.3019]
[1722358505556,10.25714352,3315.8,3313.6,0.53110905]
[1722358505557,2.667,3314.5,3313.6,0.53110905]
[1722358505717,3.01729,3314.3,3314.0,0.0852466]
[1722358505901,3.01741,3314.1,3313.6,0.53110905]
[1722358506103,3.01768,3313.8,3313.6,0.53110905]
[1722358506335,3.01768,3313.8,3313.7,0.082221]
[1722358506636,3.01753,3314.0,3313.7,0.082221]
[1722358507014,3.01748,3314.1,3313.7,0.082221]
[1722358507341,2.667,3314.4,3313.8,0.08216146]
[1722358507499,3.01741,3314.1,3313.8,0.08216146]
[1722358507699,3.01737,3314.2,3313.6,0.36333005]
[1722358507927,3.01704,3314.5,3313.7,3.0177]
[1722358508158,6.01693,3314.7,3314.0,3.01749]
[1722358508401,0.07292517,3314.6,3314.0,3.01749]
[1722358508614,0.60898552,3314.5,3314.1,0.07924219]
[1722358508913,3.01731,3314.2,3314.1,0.07924219]
[1722358509095,3.01742,3314.1,3313.6,0.36333005]
[1722358509300,3.01723,3314.3,3313.6,0.36333005]
[1722358509301,0.07292517,3314.0,3313.6,0.36333005]
[1722358509500,0.07292517,3314.0,3313.7,0.0794803]
[1722358510143,3.01766,3313.9,3313.7,0.0794803]
[1722358510347,0.38198369,3313.8,3313.7,0.0794803]
[1722358510551,3.39966369,3313.8,3313.7,0.0794803]
[1722358510715,6.41734369,3313.8,3313.7,0.0794803]
[1722358510915,3.39966369,3313.8,3313.7,0.0794803]
[1722358511121,3.39966369,3313.8,3313.6,0.36333005]
[1722358511317,6.34448852,3313.8,3313.7,0.0794803]
[1722358511542,3.32673852,3313.8,3313.6,0.36333005]
[1722358511757,3.01777,3313.7,3313.6,0.36333005]
[1722358512468,3.01777,3313.7,3313.6,0.44286988]
[1722358512853,0.30905852,3313.8,3313.6,0.44286988]
[1722358513238,0.07292517,3313.7,3313.6,0.36333005]
[1722358514255,3.43066254,3313.7,3313.6,0.36333005]
[1722358514656,6.44843254,3313.7,3313.6,0.36333005]
[1722358514857,3.43066254,3313.7,3313.6,0.44286988]
[1722358515575,0.41289254,3313.7,3313.6,0.44286988]
[1722358515877,0.07292517,3313.7,3313.6,0.44286988]
[1722358516381,3.09069517,3313.7,3313.6,0.44286988]
[1722358517180,0.07292517,3313.7,3313.6,0.44286988]
[1722358517471,3.01736,3314.2,3313.6,0.44286988]
[1722358517674,6.319176,3314.1,3313.6,0.44286988]
[1722358517844,2.354,3315.1,3313.6,2.87216988]
[1722358518047,3.01687,3314.7,3313.6,2.87216988]
[1722358518247,2.354,3315.1,3313.6,5.9503509]
[1722358518463,3.017,3314.6,3313.7,0.59503509]
[1722358518661,3.01717,3314.4,3313.9,3.01754]
[1722358518985,0.07292517,3314.3,3314.0,0.07974724]
[1722358519181,3.017,3314.6,3314.1,3.0174]
[1722358519383,3.01681,3314.8,3314.1,3.0174]
[1722358519623,3.301681,3314.7,3314.2,3.0968782]
[1722358519824,0.301681,3314.7,3314.2,3.0968782]
[1722358520725,0.301681,3314.7,3314.2,0.0796282]
[1722358520882,3.318591,3314.7,3314.2,3.01725]
[1722358521282,0.07292517,3314.6,3314.3,0.07956869]
[1722358521779,4.00044609,3314.6,3314.4,0.07950918]
[1722358522000,0.98349609,3314.6,3314.4,0.07950918]
[1722358522334,0.98349609,3314.6,3314.1,3.0174]
[1722358522335,0.07292517,3314.5,3314.1,3.0174]
[1722358522532,0.07292517,3314.5,3314.1,3.01734]
[1722358522997,0.07292517,3314.5,3314.2,3.01731]
[1722358523217,0.91057092,3314.6,3314.3,3.01722]
[1722358523419,7.77788482,3324.5,3314.6,3.01693]
[1722358523420,3.01637,3315.3,3314.6,3.01693]
[1722358523623,3.01637,3315.3,3314.8,3.01676]
[1722358523819,3.01637,3315.3,3314.2,5.59158]
[1722358523820,0.07292517,3315.2,3314.9,3.01659]
[1722358524136,0.51343,3315.6,3315.1,3.01641]
[1722358524343,0.51343,3315.6,3315.2,3.01639]
[1722358524939,0.07292517,3315.5,3315.3,3.01624]
[1722358525162,3.01561,3316.1,3314.9,2.2901]
[1722358525303,0.07292517,3316.0,3315.0,0.06032643]
[1722358525504,3.01533,3316.4,3315.9,3.01572]
[1722358525745,3.01535,3316.4,3315.9,3.01572]
[1722358526068,2.667,3316.8,3315.0,0.06032643]
[1722358526069,3.01509,3316.7,3315.2,0.3019]
[1722358526245,3.01509,3316.7,3316.1,3.01553]
[1722358526246,0.64113417,3316.6,3316.1,3.01553]
[1722358526406,0.07292517,3316.5,3316.1,3.01552]
[1722358526763,0.07292517,3316.5,3316.0,3.01565]
[1722358526902,0.07292517,3316.5,3316.1,3.01558]
[1722358527099,0.30880652,3316.4,3316.1,3.01558]
[1722358527300,0.30880652,3316.4,3315.6,0.3019]
[1722358527301,0.30880652,3316.4,3316.3,3.0154]
[1722358527562,3.01467,3317.2,3316.6,3.01512]
[1722358527738,3.08767517,3317.1,3316.4,3.01523]
[1722358528101,3.01456,3317.3,3316.7,3.01496]
[1722358528301,3.01456,3317.3,3316.3,2.3628]
[1722358528302,0.301456,3317.2,3316.9,3.01481]
[1722358528657,3.01424,3317.6,3317.0,3.0147]
[1722358528854,3.01424,3317.6,3316.9,3.01479]
[1722358528855,3.01424,3317.6,3317.1,3.01466]
[1722358529000,6.18582,3318.1,3317.3,3.01444]
[1722358529001,3.01382,3318.1,3317.3,3.01444]
[1722358529205,3.01382,3318.1,3316.9,0.06029285]
[1722358529206,0.618582,3318.0,3317.7,3.01413]
[1722358529449,0.07292517,3318.2,3317.8,3.01398]
[1722358529664,0.07292517,3318.2,3317.8,3.01399]
[1722358529946,3.08663517,3318.2,3317.6,3.01418]
[1722358530154,3.08663517,3318.2,3317.4,3.01437]
[1722358530155,3.01391,3318.0,3317.4,3.01434]
[1722358530450,3.08689517,3317.9,3317.3,3.01448]
[1722358530611,3.08689517,3317.9,3317.5,0.07684914]
[1722358530810,0.07292517,3317.9,3317.4,3.0144]
[1722358531034,0.07292517,3317.9,3317.6,0.07651632]
[1722358531345,0.30867852,3317.8,3317.7,0.07645693]
[1722358531713,0.30867852,3317.8,3317.4,3.01434]
[1722358531913,0.07292517,3317.7,3317.4,3.01434]
[1722358532122,0.07292517,3317.7,3317.2,3.01455]
[1722358532464,9.739,3318.8,3317.3,3.01448]
[1722358532465,3.01398,3317.9,3317.3,3.01448]
[1722358532669,0.07292517,3317.8,3317.4,3.0144]
[1722358532824,0.07292517,3317.8,3317.3,3.01444]
[1722358533219,0.07292517,3317.8,3317.3,3.01442]
[1722358533683,0.07292517,3317.8,3317.3,6.02884]
[1722358533975,0.30868752,3317.7,3317.5,3.01426]
[1722358534155,3.08673517,3318.1,3317.5,3.01426]
[1722358534560,3.01386,3318.0,3317.4,3.01434]
[1722358534761,0.07292517,3317.9,3317.6,3.01421]
[1722358535083,0.301372,3318.1,3317.1,3.0749258]
[1722358535387,3.01353,3318.4,3317.7,6.02814]
[1722358535544,3.01353,3318.4,3317.8,3.01397]
[1722358535898,3.01353,3318.4,3317.9,3.01394]
[1722358536104,3.01335,3318.6,3317.3,3.07473124]
[1722358536249,1.22027,3318.7,3317.3,3.07473124]
[1722358536250,6.50969717,3318.5,3317.3,3.01448]
[1722358536449,6.08633517,3318.5,3317.3,3.01448]
[1722358536651,3.07292517,3318.5,3317.5,3.01423]
[1722358536885,3.07292517,3318.5,3318.1,3.01375]
[1722358536886,0.07292517,3318.5,3318.1,3.01375]
[1722358537109,0.30729252,3318.4,3318.1,3.01375]
[1722358537399,0.07292517,3318.3,3318.1,3.01375]
[1722358537849,0.38021769,3318.4,3318.3,3.01359]
[1722358538049,3.01307,3318.9,3318.3,3.01359]
[1722358538448,0.07292517,3318.8,3318.3,3.01359]
[1722358538697,3.01307,3318.9,3317.8,0.0476325]
[1722358539024,3.08621517,3318.7,3318.0,3.01381]
[1722358539305,3.08621517,3318.7,3317.7,5.42835]
[1722358539306,3.01345,3318.5,3317.7,5.42835]
[1722358539503,0.07292517,3318.4,3317.9,3.01388]
[1722358539786,0.07292517,3318.4,3317.7,5.42835]
[1722358540008,0.07292517,3318.4,3317.9,3.0139]
[1722358540211,6.02672,3318.6,3317.9,3.01388]
[1722358540355,0.68288969,3318.5,3318.0,3.01385]
[1722358540549,0.68288969,3318.5,3318.1,3.01377]
[1722358540756,0.07292517,3318.5,3318.0,3.01381]
[1722358541067,0.44792517,3318.5,3318.0,3.01379]
[1722358541388,0.07292517,3318.4,3318.0,3.01379]
[1722358541767,0.07292517,3318.4,3317.8,3.01399]
[1722358541971,0.34613852,3318.3,3317.8,3.01399]
[1722358542266,0.34613852,3318.3,3317.9,3.01393]
[1722358542466,0.07292517,3318.4,3317.9,3.01393]
[1722358542797,3.08648517,3318.4,3317.8,3.014]
[1722358543007,0.07292517,3318.4,3317.8,3.01403]
[1722358543214,3.01365,3318.3,3317.6,3.01415]
[1722358543507,0.07292517,3318.2,3317.7,3.01411]
[1722358543803,0.37429017,3318.2,3317.7,3.01407]
[1722358543981,0.37429017,3318.2,3317.5,0.3019]
[1722358543982,3.38799017,3318.2,3317.5,0.3019]
[1722358544165,3.01418,3317.7,3317.2,2.4565]
[1722358544349,3.01397,3317.9,3317.3,3.01448]
[1722358544558,0.07292517,3317.8,3317.3,3.01448]
[1722358545290,0.07292517,3317.8,3317.4,0.07588642]
[1722358545492,3.01414,3317.7,3317.4,0.07588642]
[1722358545879,3.08715517,3317.6,3317.2,0.3019]
[1722358546064,3.08716517,3317.6,3317.2,0.3019]
[1722358546277,0.07292517,3317.6,3316.7,3.01498]
[1722358546562,0.07292517,3317.6,3317.1,3.01459]
[1722358546563,0.62508669,3317.6,3317.1,3.01459]
[1722358546950,3.63930669,3317.6,3317.1,3.01459]
[1722358547153,0.07292517,3317.5,3317.1,3.01459]
[1722358547393,0.07292517,3317.5,3316.9,3.3167]
[1722358547394,0.07292517,3317.5,3316.9,6.33149]
[1722358547754,0.07292517,3317.5,3316.9,3.31669]
[1722358548196,5.3664,3318.2,3317.1,3.31656]
[1722358548368,5.3664,3318.2,3317.1,3.01462]
[1722358548369,3.01405,3317.8,3317.1,3.01462]
[1722358548563,0.07292517,3317.7,3317.1,3.01462]
[1722358549498,0.07292517,3317.7,3316.8,0.3019]
[1722358549732,3.01451,3317.3,3316.7,3.01503]
[1722358549996,0.37437617,3317.2,3316.7,3.01503]
[1722358550967,0.37437617,3317.2,3316.8,3.01488]